[Event "*** Titled Tuesday Blitz"]
[Site "Chess.com"]
[Date "2020.12.01"]
[Round "1"]
[White "Ladislav1969"]
[Black "Margency"]
[Result "0-1"]
[WhiteElo "2349"]
[BlackElo "2683"]
[TimeControl "180+1"]
[EndTime "10:09:21 PST"]
[Termination "Margency won by checkmate"]

1. e4 {[%clk 0:03:00.9]} 1... c5 {[%clk 0:02:59.3]} 2. d4 {[%clk 0:03:01.1]}
2... cxd4 {[%clk 0:02:59.2]} 3. c3 {[%clk 0:03:02]} 3... dxc3 {[%clk 0:02:59.8]}
4. Nxc3 {[%clk 0:03:02]} 4... Nc6 {[%clk 0:03:00.5]} 5. Nf3 {[%clk 0:03:02.4]}
5... d6 {[%clk 0:03:01.1]} 6. Bc4 {[%clk 0:03:02.3]} 6... a6 {[%clk 0:03:01.7]}
7. O-O {[%clk 0:03:01.2]} 7... Nf6 {[%clk 0:03:02.3]} 8. Qe2 {[%clk 0:02:58]}
8... Bg4 {[%clk 0:03:02.2]} 9. Rd1 {[%clk 0:02:49]} 9... e6 {[%clk 0:03:02.2]}
10. Bf4 {[%clk 0:02:44.1]} 10... Qb8 {[%clk 0:03:01.5]} 11. h3 {[%clk
0:02:33.8]} 11... Bxf3 {[%clk 0:03:01.1]} 12. Qxf3 {[%clk 0:02:34.1]} 12... Be7
{[%clk 0:03:01.6]} 13. g4 {[%clk 0:02:20.5]} 13... O-O {[%clk 0:02:58.5]} 14. g5
{[%clk 0:02:20.1]} 14... Nd7 {[%clk 0:02:56.5]} 15. Qg3 {[%clk 0:02:09]} 15...
Nde5 {[%clk 0:02:49.8]} 16. Bb3 {[%clk 0:02:08.5]} 16... b5 {[%clk 0:02:36]} 17.
h4 {[%clk 0:02:03.9]} 17... Rc8 {[%clk 0:02:29.5]} 18. Rd2 {[%clk 0:01:43.8]}
18... Na5 {[%clk 0:02:16.1]} 19. h5 {[%clk 0:01:39.6]} 19... Nac4 {[%clk
0:02:07.3]} 20. Re2 {[%clk 0:01:37.6]} 20... Qb6 {[%clk 0:02:01.2]} 21. Rd1
{[%clk 0:01:29.4]} 21... g6 {[%clk 0:01:54.2]} 22. hxg6 {[%clk 0:01:26.5]} 22...
hxg6 {[%clk 0:01:54]} 23. Kg2 {[%clk 0:01:27]} 23... Bf8 {[%clk 0:01:53.1]} 24.
Rh1 {[%clk 0:01:25.5]} 24... Bg7 {[%clk 0:01:53.6]} 25. Rh4 {[%clk 0:01:15.3]}
25... a5 {[%clk 0:01:50.4]} 26. Re1 {[%clk 0:01:15.1]} 26... a4 {[%clk
0:01:47.2]} 27. Bxc4 {[%clk 0:01:14.2]} 27... Rxc4 {[%clk 0:01:45.5]} 28. Reh1
{[%clk 0:01:12.8]} 28... Rac8 {[%clk 0:01:31.5]} 29. Qh2 {[%clk 0:01:06.1]}
29... Kf8 {[%clk 0:01:29.4]} 30. Rh7 {[%clk 0:01:02.4]} 30... Ng4 {[%clk
0:01:14.5]} 31. Qh4 {[%clk 0:01:02.5]} 31... Qxf2+ {[%clk 0:01:13]} 32. Qxf2
{[%clk 0:01:02]} 32... Nxf2 {[%clk 0:01:13.2]} 33. Bxd6+ {[%clk 0:00:59.7]}
33... Kg8 {[%clk 0:01:13]} 34. Kxf2 {[%clk 0:00:47.7]} 34... a3 {[%clk
0:01:12.2]} 35. Rxg7+ {[%clk 0:00:32.5]} 35... Kxg7 {[%clk 0:01:12]} 36. Be5+
{[%clk 0:00:33]} 36... Kf8 {[%clk 0:01:11.6]} 37. Bf6 {[%clk 0:00:26.9]} 37...
Ke8 {[%clk 0:01:09.7]} 38. Rh8+ {[%clk 0:00:25]} 38... Kd7 {[%clk 0:01:09.5]}
39. Rxc8 {[%clk 0:00:24.8]} 39... Kxc8 {[%clk 0:01:07.5]} 40. bxa3 {[%clk
0:00:24.5]} 40... b4 {[%clk 0:01:04.6]} 41. axb4 {[%clk 0:00:24]} 41... Rxb4
{[%clk 0:01:05]} 42. Ke3 {[%clk 0:00:24.9]} 42... Kd7 {[%clk 0:01:00.7]} 43. a4
{[%clk 0:00:24.9]} 43... Rb3 {[%clk 0:00:59.3]} 44. Kd3 {[%clk 0:00:25]} 44...
Ra3 {[%clk 0:00:58.5]} 45. Kc4 {[%clk 0:00:25.1]} 45... Kc6 {[%clk 0:00:58.4]}
46. Kb4 {[%clk 0:00:24.3]} 46... Ra1 {[%clk 0:00:56.6]} 47. Nb5 {[%clk
0:00:22.7]} 47... Rb1+ {[%clk 0:00:55.4]} 48. Kc4 {[%clk 0:00:22.2]} 48... Kb6
{[%clk 0:00:53.2]} 49. Nc3 {[%clk 0:00:21.7]} 49... Rc1 {[%clk 0:00:50.4]} 50.
Bd8+ {[%clk 0:00:21.4]} 50... Ka6 {[%clk 0:00:50.1]} 51. a5 {[%clk 0:00:21]}
51... Rc2 {[%clk 0:00:47.8]} 52. Kd3 {[%clk 0:00:20.5]} 52... Rb2 {[%clk
0:00:44.6]} 53. Bb6 {[%clk 0:00:20.1]} 53... Rb4 {[%clk 0:00:43.4]} 54. Ne2
{[%clk 0:00:19]} 54... Rb5 {[%clk 0:00:42]} 55. Bd8 {[%clk 0:00:17.5]} 55... Rb8
{[%clk 0:00:39.9]} 56. Bb6 {[%clk 0:00:17]} 56... Rh8 {[%clk 0:00:38.7]} 57. Nd4
{[%clk 0:00:17]} 57... Rh3+ {[%clk 0:00:37.2]} 58. Kc4 {[%clk 0:00:16.5]} 58...
Re3 {[%clk 0:00:36.2]} 59. Nc6 {[%clk 0:00:14.4]} 59... Rxe4+ {[%clk 0:00:36.3]}
60. Kc5 {[%clk 0:00:13.9]} 60... Rf4 {[%clk 0:00:28.9]} 61. Kd6 {[%clk
0:00:12.3]} 61... Rf5 {[%clk 0:00:26.8]} 62. Bd8 {[%clk 0:00:10.5]} 62... Kb7
{[%clk 0:00:23.3]} 63. Ne5 {[%clk 0:00:08.5]} 63... Ka6 {[%clk 0:00:22.1]} 64.
Bb6 {[%clk 0:00:07.8]} 64... Rxg5 {[%clk 0:00:21.4]} 65. Nxf7 {[%clk 0:00:08.2]}
65... Rf5 {[%clk 0:00:19.7]} 66. Kxe6 {[%clk 0:00:07.7]} 66... Rf1 {[%clk
0:00:18.6]} 67. Bd8 {[%clk 0:00:07.4]} 67... Rd1 {[%clk 0:00:15.7]} 68. Be7
{[%clk 0:00:06.3]} 68... Kxa5 {[%clk 0:00:14.9]} 69. Ne5 {[%clk 0:00:06]} 69...
Re1 {[%clk 0:00:12.5]} 70. Kf6 {[%clk 0:00:04.9]} 70... Kb5 {[%clk 0:00:12]} 71.
Nxg6 {[%clk 0:00:04.3]} 71... Kc6 {[%clk 0:00:11]} 72. Nf8 {[%clk 0:00:04.3]}
72... Kd5 {[%clk 0:00:10.8]} 73. Ng6 {[%clk 0:00:04]} 73... Rf1+ {[%clk
0:00:10.8]} 74. Kg7 {[%clk 0:00:04.2]} 74... Ke6 {[%clk 0:00:11]} 75. Bg5 {[%clk
0:00:04.6]} 75... Rg1 {[%clk 0:00:10.9]} 76. Be7 {[%clk 0:00:04.7]} 76... Kf5
{[%clk 0:00:10.4]} 77. Bf8 {[%clk 0:00:05.6]} 77... Rxg6+ {[%clk 0:00:10.7]} 78.
Kf7 {[%clk 0:00:05.7]} 78... Rb6 {[%clk 0:00:10.7]} 79. Be7 {[%clk 0:00:05.4]}
79... Rb7 {[%clk 0:00:11.1]} 80. Ke8 {[%clk 0:00:05.6]} 80... Ke6 {[%clk
0:00:11.4]} 81. Bd8 {[%clk 0:00:04.8]} 81... Rb8 {[%clk 0:00:11.8]} 82. Kf8
{[%clk 0:00:04.1]} 82... Rxd8+ {[%clk 0:00:12.2]} 83. Kg7 {[%clk 0:00:05]} 83...
Rd5 {[%clk 0:00:11.9]} 84. Kg6 {[%clk 0:00:05]} 84... Rc5 {[%clk 0:00:11.5]} 85.
Kh7 {[%clk 0:00:04.7]} 85... Kf7 {[%clk 0:00:11.3]} 86. Kh8 {[%clk 0:00:05.2]}
86... Rh5# {[%clk 0:00:11.3]} 0-1

[Event "*** Titled Tuesday Blitz"]
[Site "Chess.com"]
[Date "2020.12.01"]
[Round "1"]
[White "stepanosinovsky"]
[Black "FelixBlohberger"]
[Result "0-1"]
[WhiteElo "2309"]
[BlackElo "2631"]
[TimeControl "180+1"]
[EndTime "10:09:46 PST"]
[Termination "FelixBlohberger won on time"]

1. e4 {[%clk 0:03:00.9]} 1... c6 {[%clk 0:02:57.1]} 2. d3 {[%clk 0:03:00.3]}
2... d5 {[%clk 0:02:54.3]} 3. Nd2 {[%clk 0:03:01.2]} 3... e5 {[%clk 0:02:52.1]}
4. Ngf3 {[%clk 0:03:00.7]} 4... Bd6 {[%clk 0:02:50.6]} 5. g3 {[%clk 0:02:59.3]}
5... Nf6 {[%clk 0:02:46.4]} 6. Bg2 {[%clk 0:02:58.8]} 6... O-O {[%clk
0:02:46.7]} 7. O-O {[%clk 0:02:58.4]} 7... Re8 {[%clk 0:02:42.2]} 8. Re1 {[%clk
0:02:56.6]} 8... h6 {[%clk 0:02:36.7]} 9. a4 {[%clk 0:02:54.5]} 9... a5 {[%clk
0:02:33.1]} 10. b3 {[%clk 0:02:54.1]} 10... Nbd7 {[%clk 0:02:26.2]} 11. Bb2
{[%clk 0:02:53.7]} 11... Qc7 {[%clk 0:02:24.9]} 12. h3 {[%clk 0:02:38.4]} 12...
dxe4 {[%clk 0:02:24]} 13. dxe4 {[%clk 0:02:37.7]} 13... Bb4 {[%clk 0:02:19.6]}
14. Re3 {[%clk 0:02:28.9]} 14... Nf8 {[%clk 0:02:16.3]} 15. Nh4 {[%clk
0:02:25.9]} 15... Bc5 {[%clk 0:02:11.2]} 16. Rd3 {[%clk 0:02:21.7]} 16... b6
{[%clk 0:02:06.3]} 17. Nf5 {[%clk 0:01:57.1]} 17... Ba6 {[%clk 0:01:50.4]} 18.
c4 {[%clk 0:01:56.3]} 18... Rad8 {[%clk 0:01:48.4]} 19. Rxd8 {[%clk 0:01:47.8]}
19... Rxd8 {[%clk 0:01:49.3]} 20. Qe2 {[%clk 0:01:17.9]} 20... Bc8 {[%clk
0:01:46.2]} 21. Nf3 {[%clk 0:01:11.3]} 21... Ng6 {[%clk 0:01:21]} 22. Nh2 {[%clk
0:01:02.6]} 22... Qd7 {[%clk 0:01:15.8]} 23. Bf3 {[%clk 0:00:56.6]} 23... Qd2
{[%clk 0:01:14.3]} 24. Kf1 {[%clk 0:00:37.4]} 24... Qxe2+ {[%clk 0:01:08.3]} 25.
Kxe2 {[%clk 0:00:36.9]} 25... Nh7 {[%clk 0:00:54.5]} 26. h4 {[%clk 0:00:32.6]}
26... f6 {[%clk 0:00:53.5]} 27. Rd1 {[%clk 0:00:21.1]} 27... Rxd1 {[%clk
0:00:51.3]} 28. Kxd1 {[%clk 0:00:22]} 28... Bxf2 {[%clk 0:00:43.8]} 29. h5
{[%clk 0:00:22.2]} 29... Bxf5 {[%clk 0:00:39.3]} 30. exf5 {[%clk 0:00:20.5]}
30... Ne7 {[%clk 0:00:39.3]} 31. g4 {[%clk 0:00:17.1]} 31... Ng5 {[%clk
0:00:38.5]} 32. Bg2 {[%clk 0:00:13.7]} 32... Bd4 {[%clk 0:00:35.2]} 33. Bc1
{[%clk 0:00:13.3]} 33... Kf7 {[%clk 0:00:29.5]} 34. Nf1 {[%clk 0:00:12.6]} 34...
Ke8 {[%clk 0:00:27.4]} 35. Bxg5 {[%clk 0:00:12]} 35... hxg5 {[%clk 0:00:27]} 36.
Ng3 {[%clk 0:00:12.6]} 36... Kd7 {[%clk 0:00:18.1]} 37. Ne4 {[%clk 0:00:12.4]}
37... Ng8 {[%clk 0:00:18.3]} 38. Bf3 {[%clk 0:00:10.8]} 38... Nh6 {[%clk
0:00:18.3]} 39. Kc2 {[%clk 0:00:11.3]} 39... Nf7 {[%clk 0:00:18.7]} 40. Kd3
{[%clk 0:00:11.4]} 40... Bc5 {[%clk 0:00:18.8]} 41. Kc2 {[%clk 0:00:10.8]} 41...
Be7 {[%clk 0:00:19]} 42. Kd3 {[%clk 0:00:11]} 42... Nd8 {[%clk 0:00:18.9]} 43.
Kc2 {[%clk 0:00:11]} 43... Ke8 {[%clk 0:00:10.7]} 44. Kd3 {[%clk 0:00:10.3]}
44... Kd7 {[%clk 0:00:10.3]} 45. Kc2 {[%clk 0:00:10.3]} 45... Nf7 {[%clk
0:00:10.9]} 46. Kd3 {[%clk 0:00:09.5]} 46... Bd8 {[%clk 0:00:11.5]} 47. Kc2
{[%clk 0:00:09.5]} 47... Nh6 {[%clk 0:00:07]} 48. Kd3 {[%clk 0:00:09.4]} 48...
Ng8 {[%clk 0:00:07.6]} 49. Kc2 {[%clk 0:00:08.8]} 49... Ne7 {[%clk 0:00:05.4]}
50. Kd3 {[%clk 0:00:08.8]} 50... Nc8 {[%clk 0:00:05]} 51. Kc2 {[%clk 0:00:08.6]}
51... Be7 {[%clk 0:00:04.9]} 52. Kd3 {[%clk 0:00:08.3]} 52... Bd8 {[%clk
0:00:04.2]} 53. Kc2 {[%clk 0:00:08.3]} 53... Kc7 {[%clk 0:00:04.8]} 54. Kd3
{[%clk 0:00:08.2]} 54... Be7 {[%clk 0:00:05.5]} 55. Kc2 {[%clk 0:00:08.2]} 55...
Na7 {[%clk 0:00:06.2]} 56. Kd3 {[%clk 0:00:07.1]} 56... b5 {[%clk 0:00:06.8]}
57. Kc2 {[%clk 0:00:06.2]} 57... bxa4 {[%clk 0:00:07]} 58. bxa4 {[%clk
0:00:06.6]} 58... Nc8 {[%clk 0:00:06.4]} 59. Kb3 {[%clk 0:00:06.4]} 59... Nb6
{[%clk 0:00:05.4]} 60. Be2 {[%clk 0:00:05.6]} 60... Nd7 {[%clk 0:00:05.5]} 61.
Bf3 {[%clk 0:00:05.3]} 61... Bc5 {[%clk 0:00:05.7]} 62. Be2 {[%clk 0:00:05]}
62... Bd4 {[%clk 0:00:06]} 63. Bf3 {[%clk 0:00:04.9]} 63... Bb6 {[%clk
0:00:02.8]} 64. Be2 {[%clk 0:00:04.7]} 64... Be3 {[%clk 0:00:03.3]} 65. Bf3
{[%clk 0:00:04.9]} 65... Bd4 {[%clk 0:00:02.9]} 66. Be2 {[%clk 0:00:05]} 66...
Kd8 {[%clk 0:00:03.3]} 67. Bf3 {[%clk 0:00:05.6]} 67... Ke7 {[%clk 0:00:03.9]}
68. Be2 {[%clk 0:00:06.1]} 68... Nb6 {[%clk 0:00:03.4]} 69. Bf3 {[%clk 0:00:07]}
69... Nc8 {[%clk 0:00:03.9]} 70. Be2 {[%clk 0:00:07.2]} 70... Kf7 {[%clk
0:00:03.9]} 71. Bf3 {[%clk 0:00:08.1]} 71... Ne7 {[%clk 0:00:04.4]} 72. Be2
{[%clk 0:00:08.4]} 72... Ke8 {[%clk 0:00:04.3]} 73. Bf3 {[%clk 0:00:08.8]} 73...
Ba7 {[%clk 0:00:03.7]} 74. Be2 {[%clk 0:00:09.2]} 74... Kf7 {[%clk 0:00:03.6]}
75. Bf3 {[%clk 0:00:09.2]} 75... Bb6 {[%clk 0:00:03.6]} 76. Nd6+ {[%clk
0:00:09.3]} 76... Kf8 {[%clk 0:00:03.6]} 77. Ne4 {[%clk 0:00:10.2]} 77... Ke8
{[%clk 0:00:03.5]} 78. Nd6+ {[%clk 0:00:09.5]} 78... Kd7 {[%clk 0:00:03.5]} 79.
Ne4 {[%clk 0:00:10.4]} 79... Ng8 {[%clk 0:00:04.1]} 80. Be2 {[%clk 0:00:10.1]}
80... Nh6 {[%clk 0:00:04.7]} 81. Bf3 {[%clk 0:00:10.5]} 81... Nf7 {[%clk
0:00:05.1]} 82. Be2 {[%clk 0:00:10.3]} 82... Nd6 {[%clk 0:00:04.8]} 83. Bf3
{[%clk 0:00:09.9]} 83... Nxe4 {[%clk 0:00:04.4]} 84. Bxe4 {[%clk 0:00:10.8]}
84... Kd6 {[%clk 0:00:05]} 85. Kc3 {[%clk 0:00:10.2]} 85... Bd4+ {[%clk
0:00:05.2]} 86. Kb3 {[%clk 0:00:09.2]} 86... Kc5 {[%clk 0:00:05.7]} 87. Bf3
{[%clk 0:00:06.8]} 87... Ba1 {[%clk 0:00:04.3]} 88. Bg2 {[%clk 0:00:04.8]} 88...
Bd4 {[%clk 0:00:02.7]} 89. Bf1 {[%clk 0:00:03.4]} 89... e4 {[%clk 0:00:01.8]}
90. Be2 {[%clk 0:00:02.2]} 90... e3 {[%clk 0:00:02.3]} 0-1

[Event "*** Titled Tuesday Blitz"]
[Site "Chess.com"]
[Date "2020.12.01"]
[Round "1"]
[White "ErikRonka"]
[Black "DoHoChess"]
[Result "0-1"]
[WhiteElo "2386"]
[BlackElo "2772"]
[TimeControl "180+1"]
[EndTime "10:10:00 PST"]
[Termination "DoHoChess won on time"]

1. e4 {[%clk 0:03:00.5]} 1... e5 {[%clk 0:02:58.3]} 2. Nf3 {[%clk 0:02:59.6]}
2... Nc6 {[%clk 0:02:58.5]} 3. Bb5 {[%clk 0:03:00.1]} 3... a6 {[%clk 0:02:58.2]}
4. Ba4 {[%clk 0:03:00.5]} 4... b5 {[%clk 0:02:57.6]} 5. Bb3 {[%clk 0:02:59.6]}
5... Na5 {[%clk 0:02:58.5]} 6. d4 {[%clk 0:02:57.8]} 6... exd4 {[%clk
0:02:58.1]} 7. Nxd4 {[%clk 0:02:52.4]} 7... Bb7 {[%clk 0:02:56.5]} 8. O-O {[%clk
0:01:52.2]} 8... c5 {[%clk 0:02:32.1]} 9. Qh5 {[%clk 0:01:06.1]} 9... c4 {[%clk
0:02:19.3]} 10. Bg5 {[%clk 0:00:47.7]} 10... Qb6 {[%clk 0:01:37]} 11. Be3 {[%clk
0:00:43]} 11... Qc7 {[%clk 0:00:59.4]} 12. Nc3 {[%clk 0:00:38]} 12... cxb3
{[%clk 0:00:58.3]} 13. cxb3 {[%clk 0:00:38.9]} 13... Nf6 {[%clk 0:00:55]} 14.
Qg5 {[%clk 0:00:38.5]} 14... h6 {[%clk 0:00:47.2]} 15. Qh4 {[%clk 0:00:36]}
15... Nc6 {[%clk 0:00:43.1]} 16. Nf5 {[%clk 0:00:35.3]} 16... Ne5 {[%clk
0:00:28.9]} 17. Rac1 {[%clk 0:00:32.9]} 17... Qb8 {[%clk 0:00:27.4]} 18. Rcd1
{[%clk 0:00:13.7]} 18... Ng6 {[%clk 0:00:20.6]} 19. Qh3 {[%clk 0:00:13.2]} 19...
Ne5 {[%clk 0:00:20.6]} 20. Rfe1 {[%clk 0:00:13.1]} 20... g6 {[%clk 0:00:20.9]}
21. f4 {[%clk 0:00:12.6]} 21... gxf5 {[%clk 0:00:18.5]} 22. fxe5 {[%clk
0:00:13]} 22... Nxe4 {[%clk 0:00:19]} 23. Qxf5 {[%clk 0:00:10.5]} 23... Nc5
{[%clk 0:00:13.7]} 24. Nd5 {[%clk 0:00:06]} 24... Bxd5 {[%clk 0:00:13.3]} 25.
Rxd5 {[%clk 0:00:06.9]} 25... Ne6 {[%clk 0:00:13.5]} 26. Red1 {[%clk 0:00:06.9]}
26... Ra7 {[%clk 0:00:12.7]} 27. Qf6 {[%clk 0:00:06.8]} 27... Bg7 {[%clk
0:00:10.3]} 28. Qf5 {[%clk 0:00:06.1]} 28... O-O {[%clk 0:00:10.5]} 29. Bxa7
{[%clk 0:00:06]} 29... Qxa7+ {[%clk 0:00:10.6]} 30. Qf2 {[%clk 0:00:06.9]} 30...
Qc7 {[%clk 0:00:09.8]} 31. Rxd7 {[%clk 0:00:06.9]} 31... Qxe5 {[%clk 0:00:10.2]}
32. R7d5 {[%clk 0:00:06.6]} 32... Qxb2 {[%clk 0:00:10.2]} 33. Qxb2 {[%clk
0:00:06]} 33... Bxb2 {[%clk 0:00:11.1]} 34. Rd6 {[%clk 0:00:06.8]} 34... a5
{[%clk 0:00:09.8]} 35. R1d5 {[%clk 0:00:06.8]} 35... Ba3 {[%clk 0:00:09.2]} 36.
Rb6 {[%clk 0:00:06.5]} 36... Bc5+ {[%clk 0:00:09.4]} 37. Rxc5 {[%clk 0:00:06.5]}
37... Nxc5 {[%clk 0:00:10.3]} 38. Rxb5 {[%clk 0:00:07.4]} 38... Nd3 {[%clk
0:00:10.1]} 39. Rxa5 {[%clk 0:00:07.7]} 39... Rc8 {[%clk 0:00:10.7]} 40. h3
{[%clk 0:00:08]} 40... Rc1+ {[%clk 0:00:10.8]} 41. Kh2 {[%clk 0:00:07.2]} 41...
Ra1 {[%clk 0:00:11.2]} 42. Ra7 {[%clk 0:00:06.9]} 42... Nc1 {[%clk 0:00:10.6]}
43. Ra6 {[%clk 0:00:06.8]} 43... Rxa2 {[%clk 0:00:10.7]} 44. Rxh6 {[%clk
0:00:06.4]} 44... Nxb3 {[%clk 0:00:10.1]} 45. Rh4 {[%clk 0:00:06.1]} 45... Nc5
{[%clk 0:00:10.2]} 46. Rg4+ {[%clk 0:00:06.4]} 46... Kf8 {[%clk 0:00:10.1]} 47.
Rf4 {[%clk 0:00:06.9]} 47... Ne6 {[%clk 0:00:10.6]} 48. Rf3 {[%clk 0:00:07.2]}
48... Ra6 {[%clk 0:00:11.2]} 49. h4 {[%clk 0:00:07]} 49... Kg7 {[%clk
0:00:11.6]} 50. Rg3+ {[%clk 0:00:07.1]} 50... Kf6 {[%clk 0:00:11.8]} 51. Rf3+
{[%clk 0:00:08]} 51... Ke7 {[%clk 0:00:12.3]} 52. Rg3 {[%clk 0:00:08.7]} 52...
Ra4 {[%clk 0:00:12.9]} 53. Rf3 {[%clk 0:00:09]} 53... Rxh4+ {[%clk 0:00:12.7]}
54. Kg3 {[%clk 0:00:09.4]} 54... Ra4 {[%clk 0:00:13.4]} 55. Rb3 {[%clk
0:00:09.5]} 55... Ra5 {[%clk 0:00:13.8]} 56. Rb7+ {[%clk 0:00:09.5]} 56... Kf6
{[%clk 0:00:14.3]} 57. Rb3 {[%clk 0:00:10.4]} 57... Kg5 {[%clk 0:00:14.1]} 58.
Re3 {[%clk 0:00:09.9]} 58... Ng7 {[%clk 0:00:13.5]} 59. Rc3 {[%clk 0:00:09.3]}
59... f5 {[%clk 0:00:13.5]} 60. Kh2 {[%clk 0:00:09.5]} 60... Nh5 {[%clk
0:00:13.4]} 61. Rh3 {[%clk 0:00:09.3]} 61... Nf6 {[%clk 0:00:13.7]} 62. Rg3+
{[%clk 0:00:09.3]} 62... Ng4+ {[%clk 0:00:14.1]} 63. Kh3 {[%clk 0:00:09.9]}
63... Ra1 {[%clk 0:00:13.7]} 64. Rb3 {[%clk 0:00:09.4]} 64... Nf2+ {[%clk
0:00:11.6]} 65. Kg3 {[%clk 0:00:09.1]} 65... Ne4+ {[%clk 0:00:12.1]} 66. Kh2
{[%clk 0:00:07.8]} 66... f4 {[%clk 0:00:12.3]} 67. Rb8 {[%clk 0:00:05.8]} 67...
Ng3 {[%clk 0:00:12.2]} 68. Rg8+ {[%clk 0:00:05.3]} 68... Kh4 {[%clk 0:00:12.4]}
69. Rh8+ {[%clk 0:00:04.6]} 69... Kg4 {[%clk 0:00:13]} 70. Rg8+ {[%clk
0:00:04.5]} 70... Kf5 {[%clk 0:00:13.6]} 71. Rf8+ {[%clk 0:00:04.4]} 71... Ke4
{[%clk 0:00:14.1]} 72. Kh3 {[%clk 0:00:03.6]} 72... Ra5 {[%clk 0:00:12.8]} 73.
Re8+ {[%clk 0:00:03.4]} 73... Re5 {[%clk 0:00:11.2]} 74. Ra8 {[%clk 0:00:03.1]}
74... Ke3 {[%clk 0:00:10.5]} 75. Kg4 {[%clk 0:00:03.4]} 75... Re4 {[%clk
0:00:05.5]} 76. Ra3+ {[%clk 0:00:03.6]} 76... Kf2 {[%clk 0:00:05.8]} 77. Rf3+
{[%clk 0:00:04]} 77... Kxg2 {[%clk 0:00:06]} 78. Rxf4 {[%clk 0:00:04.9]} 78...
Re3 {[%clk 0:00:06.5]} 79. Rf8 {[%clk 0:00:04]} 79... Ra3 {[%clk 0:00:06.3]} 80.
Rb8 {[%clk 0:00:04]} 80... Ra4+ {[%clk 0:00:06.7]} 81. Kg5 {[%clk 0:00:04.5]}
81... Kf3 {[%clk 0:00:07.6]} 82. Rb3+ {[%clk 0:00:04.3]} 82... Kg2 {[%clk
0:00:08]} 83. Rb5 {[%clk 0:00:05.1]} 83... Kh3 {[%clk 0:00:08.4]} 84. Rb3 {[%clk
0:00:05]} 84... Ra5+ {[%clk 0:00:08.7]} 85. Kf6 {[%clk 0:00:05.2]} 85... Kg4
{[%clk 0:00:09.2]} 86. Ke6 {[%clk 0:00:05.4]} 86... Kf4 {[%clk 0:00:09]} 87.
Rb4+ {[%clk 0:00:05.8]} 87... Kf3 {[%clk 0:00:09]} 88. Rb3+ {[%clk 0:00:05.4]}
88... Kf4 {[%clk 0:00:09.5]} 89. Rb4+ {[%clk 0:00:05.7]} 89... Ne4 {[%clk
0:00:10.4]} 90. Kd7 {[%clk 0:00:05.8]} 90... Ke5 {[%clk 0:00:10.4]} 91. Kc6
{[%clk 0:00:05.8]} 91... Rc5+ {[%clk 0:00:09.9]} 92. Kb6 {[%clk 0:00:05]} 92...
Rc8 {[%clk 0:00:10.1]} 93. Rb5+ {[%clk 0:00:05.1]} 93... Kd6 {[%clk 0:00:09.9]}
94. Ka5 {[%clk 0:00:06]} 94... Nc5 {[%clk 0:00:09.7]} 95. Kb4 {[%clk 0:00:05.4]}
95... Ra8 {[%clk 0:00:10]} 96. Ra5 {[%clk 0:00:04.5]} 96... Rb8+ {[%clk
0:00:10]} 97. Rb5 {[%clk 0:00:04.5]} 97... Rc8 {[%clk 0:00:10]} 98. Ka3 {[%clk
0:00:03.7]} 98... Kd5 {[%clk 0:00:10]} 99. Rb4 {[%clk 0:00:03.5]} 99... Ra8+
{[%clk 0:00:09.7]} 0-1

[Event "*** Titled Tuesday Blitz"]
[Site "Chess.com"]
[Date "2020.12.01"]
[Round "2"]
[White "Panterov"]
[Black "venus02"]
[Result "0-1"]
[WhiteElo "2286"]
[BlackElo "2500"]
[TimeControl "180+1"]
[EndTime "10:12:35 PST"]
[Termination "venus02 won by checkmate"]

1. e4 {[%clk 0:02:57.1]} 1... c6 {[%clk 0:02:58.5]} 2. Nc3 {[%clk 0:02:56]} 2...
d5 {[%clk 0:02:58.9]} 3. Nf3 {[%clk 0:02:56.3]} 3... dxe4 {[%clk 0:02:59.3]} 4.
Nxe4 {[%clk 0:02:56.9]} 4... Nf6 {[%clk 0:02:59.6]} 5. Nxf6+ {[%clk 0:02:57.1]}
5... exf6 {[%clk 0:02:59.5]} 6. d4 {[%clk 0:02:57.3]} 6... Bd6 {[%clk
0:02:59.5]} 7. Be2 {[%clk 0:02:56.4]} 7... O-O {[%clk 0:02:59.7]} 8. O-O {[%clk
0:02:56.8]} 8... Bc7 {[%clk 0:02:59.9]} 9. h3 {[%clk 0:02:57.7]} 9... Be6 {[%clk
0:02:58.9]} 10. c3 {[%clk 0:02:58]} 10... Qd7 {[%clk 0:02:58.8]} 11. Qd3 {[%clk
0:02:48.1]} 11... Bxh3 {[%clk 0:02:55.3]} 12. gxh3 {[%clk 0:02:47.6]} 12... Qxh3
{[%clk 0:02:55.3]} 13. Ne5 {[%clk 0:02:42.4]} 13... Qh4 {[%clk 0:02:44.4]} 14.
Nf3 {[%clk 0:02:23.1]} 14... Qg4+ {[%clk 0:02:43.3]} 15. Kh1 {[%clk 0:02:23.5]}
15... Qh3+ {[%clk 0:02:43.2]} 16. Kg1 {[%clk 0:02:23.3]} 16... Re8 {[%clk
0:02:39.5]} 17. Re1 {[%clk 0:02:14.1]} 17... Nd7 {[%clk 0:02:37.2]} 18. Bf1
{[%clk 0:02:06.4]} 18... Rxe1 {[%clk 0:02:31.5]} 19. Nxe1 {[%clk 0:02:05.1]}
19... Qh2# {[%clk 0:02:31.2]} 0-1

[Event "*** Titled Tuesday Blitz"]
[Site "Chess.com"]
[Date "2020.12.01"]
[Round "2"]
[White "Bodnar_Mykola"]
[Black "BAS8892"]
[Result "0-1"]
[WhiteElo "2376"]
[BlackElo "2717"]
[TimeControl "180+1"]
[EndTime "10:13:11 PST"]
[Termination "BAS8892 won by resignation"]

1. e4 {[%clk 0:03:00.9]} 1... c6 {[%clk 0:02:58.1]} 2. d4 {[%clk 0:03:00.1]}
2... d5 {[%clk 0:02:58.1]} 3. exd5 {[%clk 0:03:00.5]} 3... cxd5 {[%clk
0:02:58.2]} 4. Bd3 {[%clk 0:03:01.2]} 4... Nc6 {[%clk 0:02:58.2]} 5. c3 {[%clk
0:03:01.8]} 5... Qc7 {[%clk 0:02:56.2]} 6. Na3 {[%clk 0:03:01.8]} 6... a6 {[%clk
0:02:55.3]} 7. Nc2 {[%clk 0:03:02.4]} 7... Nf6 {[%clk 0:02:52.1]} 8. h3 {[%clk
0:03:02.9]} 8... e5 {[%clk 0:02:51.5]} 9. dxe5 {[%clk 0:03:02.2]} 9... Nxe5
{[%clk 0:02:51.8]} 10. Nf3 {[%clk 0:03:02.9]} 10... Bd6 {[%clk 0:02:50.6]} 11.
O-O {[%clk 0:03:01.9]} 11... O-O {[%clk 0:02:50.1]} 12. Nxe5 {[%clk 0:03:00.6]}
12... Bxe5 {[%clk 0:02:49.8]} 13. Be3 {[%clk 0:02:59.1]} 13... Ne4 {[%clk
0:02:47.8]} 14. Bd4 {[%clk 0:02:59.2]} 14... Bd6 {[%clk 0:02:47.6]} 15. Ne3
{[%clk 0:02:53.5]} 15... Be6 {[%clk 0:02:46.3]} 16. Qh5 {[%clk 0:02:53.1]} 16...
f5 {[%clk 0:02:40.5]} 17. Rfe1 {[%clk 0:02:32.6]} 17... Bh2+ {[%clk 0:02:34.7]}
18. Kf1 {[%clk 0:02:30.8]} 18... Rae8 {[%clk 0:01:54.5]} 19. Rad1 {[%clk
0:02:21.3]} 19... Qf4 {[%clk 0:01:39.8]} 20. Qh6 {[%clk 0:02:22]} 0-1

[Event "*** Titled Tuesday Blitz"]
[Site "Chess.com"]
[Date "2020.12.01"]
[Round "2"]
[White "GianmarcoVaR"]
[Black "dosto07"]
[Result "1/2-1/2"]
[WhiteElo "2649"]
[BlackElo "2319"]
[TimeControl "180+1"]
[EndTime "10:13:30 PST"]
[Termination "Game drawn by agreement"]

1. d4 {[%clk 0:02:53.7]} 1... d5 {[%clk 0:02:59.2]} 2. Nf3 {[%clk 0:02:51.3]}
2... Nf6 {[%clk 0:02:58.8]} 3. g3 {[%clk 0:02:51.2]} 3... c5 {[%clk 0:02:43.9]}
4. Bg2 {[%clk 0:02:52.1]} 4... Nc6 {[%clk 0:02:43.8]} 5. O-O {[%clk 0:02:44.1]}
5... cxd4 {[%clk 0:02:39.3]} 6. Nxd4 {[%clk 0:02:42.4]} 6... e5 {[%clk
0:02:38.9]} 7. Nxc6 {[%clk 0:02:42.5]} 7... bxc6 {[%clk 0:02:39.4]} 8. c4 {[%clk
0:02:43.4]} 8... Be6 {[%clk 0:02:16.7]} 9. Nc3 {[%clk 0:02:27.5]} 9... Be7
{[%clk 0:02:09.3]} 10. Bg5 {[%clk 0:02:21.1]} 10... e4 {[%clk 0:02:03.9]} 11.
Qa4 {[%clk 0:02:11.9]} 11... O-O {[%clk 0:02:00.9]} 12. Rfd1 {[%clk 0:02:05.2]}
12... Qb6 {[%clk 0:01:59.3]} 13. cxd5 {[%clk 0:01:59.7]} 13... cxd5 {[%clk
0:01:58.7]} 14. Bxf6 {[%clk 0:01:57.4]} 14... Bxf6 {[%clk 0:01:57.8]} 15. Nxd5
{[%clk 0:01:57.2]} 1/2-1/2